Workbook

Sheet Рейтинг 1 гр
E1: Листы [таблица] и [Рейтинг] не переименовывать иначе собьются связи в формулах на листе рейтинга. Категорически ЗАПРЕЩЕНО изменять фильтр.
A2: Место в рейтинге | B2: Наименование учреждения здравоохранения | C2: величина комплексного индекса
A3: 1 | B3: Пошехонский МР ГУЗ ЯО "Пошехонская ЦРБ" | C3: 1.19
A4: 2 | B4: Любимский МР ГБУЗ ЯО "Любимская ЦРБ" | C4: 1.09
A5: 3 | B5: Тутаевский МР ГУЗ ЯО "Тутаевская ЦРБ" | C5: 1.07
A6: 4 | B6: Мышкинский МР ГУЗ ЯО "ЦРБ им. Д.Л. Соколова" | C6: 1.03
A7: 5 | B7: Некоузский МР ГУЗ ЯО "Некоузская ЦРБ" | C7: 1.02
A8: 6 | B8: Некрасовский МР ГБУЗ ЯО "Некрасовская ЦРБ" | C8: 1.01
A9: 7 | B9: Борисоглебский МР ГБУЗ ЯО "Борисоглебская ЦРБ" | C9: 1.00
A10: 8 | B10: Переславский МР ГУЗ ЯО "Переславская ЦРБ" | C10: 1.00
A11: 9 | B11: Брейтовский МР ГУЗ ЯО "Брейтовская ЦРБ" | C11: 0.95
A12: 10 | B12: Первомайский МР ГУЗ ЯО "Пречистенская ЦРБ" | C12: 0.94
A13: 11 | B13: Ярославский МР ГУЗ ЯО "Ярославская ЦРБ" | C13: 0.93
A14: 12 | B14: Гаврилов-Ямский МР ГУЗ ЯО "Гаврилов-Ямская ЦРБ" | C14: 0.92
A15: 13 | B15: Ростовский МР ГУЗ ЯО "Ростовская ЦРБ" | C15: 0.91
A16: 14 | B16: Даниловский МР ГБУЗ ЯО "Даниловская ЦРБ" | C16: 0.91
A17: 15 | B17: Большесельский МР ГУЗ ЯО "Большесельская ЦРБ" | C17: 0.88
A18: 16 | B18: Некрасовский МР ГУЗ ЯО "Бурмакинская районная больница № 1" | C18: 0.87
A19: 17 | B19: Угличский МР ГУЗ ЯО "Угличская ЦРБ" | C19: 0.85

Sheet Рейтинг 2 гр
E1: Листы [таблица] и [Рейтинг] не переименовывать иначе собьются связи в формулах на листе рейтинга. Категорически ЗАПРЕЩЕНО изменять фильтр.
A2: Место в рейтинге | B2: Наименование учреждения здравоохранения | C2: величина комплексного индекса
A3: 1 | B3: г. Ярославль ГУЗ ЯО "Клиническая больница № 5" | C3: 1.16
A4: 2 | B4: г. Рыбинск ГУЗ ЯО "Городская больница № 2 им. Н.И. Пирогова" | C4: 1.15
A5: 3 | B5: г. Ярославль ГУЗ ЯО "Клиническая больница СМП имени Н.В. Соловьева" | C5: 1.04
A6: 4 | B6: г. Ярославль ГУЗ ЯО "Клиническая больница № 10" (ГКУЗ ЯО МСЧ НЯ НПЗ) | C6: 1.03
A7: 5 | B7: г. Ярославль ГУЗ ЯО "Городская больница № 7" | C7: 0.98
A8: 6 | B8: г. Рыбинск ГУЗ ЯО "Городская больница № 6" | C8: 0.95
A9: 7 | B9: г. Ярославль ГУЗ ЯО "Клиническая больница № 2" | C9: 0.95
A10: 8 | B10: г. Рыбинск ГУЗ ЯО "Городская детская больница" | C10: 0.93
A11: 9 | B11: г. Ярославль ГУЗ ЯО "Клиническая больница № 9" | C11: 0.93
A12: 10 | B12: г. Ярославль ГУЗ ЯО "Клиническая больница № 1" (ГУЗ ЯО МСЧ ОАО "Ярославский шинный завод") | C12: 0.90
A13: 11 | B13: г. Рыбинск ГУЗ ЯО "Городская больница № 1" | C13: 0.87
A14: 12 | B14: г. Ярославль ГУЗ ЯО "Детская клиническая больница № 1" | C14: 0.86
A15: 13 | B15: г. Ярославль ГБУЗ ЯО "Городская больница им. Н.А. Семашко" | C15: 0.84
A16: 14 | B16: г. Ярославль ГУЗ ЯО "Клиническая больница № 8" | C16: 0.84
A17: 15 | B17: г. Рыбинск ГУЗ ЯО "Городская больница № 4" | C17: 0.82
A18: 16 | B18: г. Ярославль ГУЗ ЯО "Клиническая больница № 3" (ГКУЗ ЯО МСЧ ЯЗДА) | C18: 0.78
A19: 17 | B19: г. Рыбинск ГУЗ ЯО "Городская больница № 3" | C19: 0.72

Sheet Рейтинг 3 гр
E1: Листы [таблица] и [Рейтинг] не переименовывать иначе собьются связи в формулах на листе рейтинга. Категорически ЗАПРЕЩЕНО изменять фильтр.
A2: Место в рейтинге | B2: Наименование учреждения здравоохранения | C2: величина комплексного индекса
A3: 1 | B3: г. Ярославль ГУЗ ЯО "Стоматологическая поликлиника № 3" | C3: 1.04
A4: 2 | B4: г. Ярославль ГУЗ ЯО "Детская поликлиника № 5" | C4: 1.02
A5: 3 | B5: г. Ярославль ГБКУЗ ЯО "Поликлиника № 2" | C5: 1.02
A6: 4 | B6: г. Ярославль ГБУЗ ЯО "Областная стоматологическая поликлиника" | C6: 0.99
A7: 5 | B7: г. Ярославль ГУЗ ЯО "Детская поликлиника № 3" | C7: 0.91
A8: 6 | B8: г. Рыбинск ГУЗ ЯО "Городская поликлиника № 3 им. Н.А. Семашко" | C8: 0.90
A9: 7 | B9: г. Ярославль ГУЗ ЯО "Детская стоматологическая поликлиника № 2" | C9: 0.87
A10: 8 | B10: г. Рыбинск ГУЗ ЯО "Городская поликлиника № 1" | C10: 0.87
A11: 9 | B11: Рыбинский МР ГУЗ ЯО "Рыбинская ЦРП" | C11: 0.87
A12: 10 | B12: г. Рыбинск ГУЗ ЯО "Рыбинская стоматологическая поликлиника" | C12: 0.83

Sheet Рейтинг 4 гр
E1: Листы [таблица] и [Рейтинг] не переименовывать иначе собьются связи в формулах на листе рейтинга. Категорически ЗАПРЕЩЕНО изменять фильтр.
A2: Место в рейтинге | B2: Наименование учреждения здравоохранения | C2: величина комплексного индекса
A3: 1 | B3: г. Ярославль ГБУЗ ЯО "ЯОКГВВ-МЦ "Здоровое долголетие" | C3: 1.35
A4: 2 | B4: г. Ярославль ГБУЗ ЯО "Областная клиническая онкологическая больница" | C4: 1.19
A5: 3 | B5: г. Ярославль ГБУЗ ЯО "Областной перинатальный центр" | C5: 1.11
A6: 4 | B6: г. Ярославль ГБУЗ ЯО "Ярославская областная клиническая наркологическая больница" | C6: 1.00
A7: 5 | B7: г. Ярославль ГБУЗ ЯО "Областная детская клиническая больница" | C7: 0.98
A8: 6 | B8: г. Ярославль ГБУЗ ЯО "Областной кожно-венерологический диспансер" | C8: 0.96
A9: 7 | B9: г. Ярославль ГУЗ ЯО "Центр СПИД" | C9: 0.95
A10: 8 | B10: г. Ярославль ГУЗ ЯО "Инфекционная клиническая больница № 1" | C10: 0.92
A11: 9 | B11: г. Ярославль ГБУЗ ЯО "Ярославская областная клиническая психиатрическая больница" | C11: 0.90
A12: 10 | B12: г. Рыбинск ГКУЗ ЯО "Рыбинская психиатрическая больница" | C12: 0.89
A13: 11 | B13: г. Ярославль ГБУЗ ЯО "Областная клиническая больница" | C13: 0.81
A14: 12 | B14: г. Ярославль ГБУЗ ЯО "Областная клиническая туберкулезная больница" | C14: 0.74
A15: 13 | B15: г. Ярославль ГБУЗ ЯО "Областной врачебно-физкультурный диспансер" | C15: 0.70
A16: 14 | B16: г. Рыбинск ГКУЗ ЯО "Рыбинский противотуберкулезный диспансер" | C16: 0.66

Sheet V гр (hidden)
A1: Наименование учреждения здравоохранения | B1: Уровень укомплектованности штатных должностей врачами, в % | E1: Уровень укомплектованности штатных должностей средним медперсоналом, в % | H1: Коэффициент совместительства врачей | K1: Коэффициент совместительства среднего медперсонала | N1: Удельный вес врачей, имеющих первую и высшую квалификационные категории, в % | Q1: Удельный вес средних медработников, имеющих первую и высшую квалификационные категории, в %. | T1: Фондооснащенность (в руб. на кв. м) | W1: Фондовооруженность (в руб. на 1 врача) | Z1: стационарная медицинская помощь, койко-дни в % к плану | AC1: дневные стационары всех типов, пациенто-дни в % к плану | AF1: амбулаторно-поликлиническая помощь, посещения в % к плану | AI1: скорая медицинская помощь, вызовы в % к плану | AL1: Индекс оценки доступности и удовлетворенности качеством оказываемой медицинской помощи | AO1: Индекс дефектов объемов, сроков, качества и условий предоставления медицинской помощи по обязательному медицинскому страхованию | AR1: Внутрибольничная летальность | AU1: Среднее число дней работы койки в году | AX1: Число (процент) осложнений после проведенных операций | BA1: Выполнение функции врачебной должности (число посещений на 1 врача в год) | BD1: Количество внеплановых проверок медицинских организаций в ходе которых были выявлены нарушения в неоказании, несвоевременном оказании, либо оказании медицинской помощи ненадлежащего качества | BG1: величина комплексного индекса | BH1: Место в рейтинге
B2: пок-ль ЛПУ | C2: норматив | D2: индекс | E2: пок-ль ЛПУ | F2: норматив | G2: индекс | H2: пок-ль ЛПУ | I2: норматив | J2: обратн. индекс | K2: пок-ль ЛПУ | L2: норматив | M2: обратн. индекс | N2: пок-ль ЛПУ | O2: средний по области | P2: индекс | Q2: пок-ль ЛПУ | R2: средний по области | S2: индекс | T2: пок-ль ЛПУ | U2: средний по области | V2: индекс | W2: пок-ль ЛПУ | X2: средний по области | Y2: индекс | Z2: пок-ль ЛПУ | AA2: норматив | AB2: индекс | AC2: пок-ль ЛПУ | AD2: норматив | AE2: индекс | AF2: пок-ль ЛПУ | AG2: норматив | AH2: индекс | AI2: пок-ль ЛПУ | AJ2: норматив | AK2: индекс | AL2: пок-ль ЛПУ | AM2: средний по области | AN2: индекс | AO2: пок-ль ЛПУ | AP2: средний по области | AQ2: обратн. индекс | AR2: пок-ль ЛПУ | AS2: средний по области | AT2: индекс | AU2: пок-ль ЛПУ | AV2: средний по области | AW2: индекс | AX2: пок-ль ЛПУ | AY2: средний по области | AZ2: индекс | BA2: пок-ль ЛПУ | BB2: средний по группе | BC2: индекс | BD2: пок-ль ЛПУ | BE2: норматив | BF2: индекс
A3: тест | B3: 1 | C3: 100 | D3: =IF(IFERROR(B3/C3,FALSE),B3/C3," ") -> 0.01 | E3: 1 | F3: 100 | G3: =IF(IFERROR(E3/F3,FALSE),E3/F3," ") -> 0.01 | H3: 1 | I3: 1 | J3: =IF(IFERROR(I3/H3,FALSE),I3/H3," ") -> 1 | K3: 1 | L3: 1 | M3: =IF(IFERROR(L3/K3,FALSE),L3/K3," ") -> 1 | N3: 1 | O3: 53.1 | P3: =IF(IFERROR(N3/O3,FALSE),N3/O3," ") -> 0.01883239171 | Q3: 1 | R3: 67.30 | S3: =IF(IFERROR(Q3/R3,FALSE),Q3/R3," ") -> 0.01485884101 | T3: 1 | U3: 20012.2 | V3: =IF(IFERROR(T3/U3,FALSE),T3/U3," ") -> 4.996951859e-05 | W3: 1 | X3: 3011855 | Y3: =IF(IFERROR(W3/X3,FALSE),W3/X3," ") -> 3.320212958e-07 | Z3: 1 | AA3: 100 | AB3: =IF(IFERROR(AA3/Z3,FALSE),AA3/Z3," ") -> 100 | AC3: 1 | AD3: 100 | AE3: =IF(IFERROR(AC3/AD3,FALSE),AC3/AD3," ") -> 0.01 | AF3: 1 | AG3: 100 | AH3: =IF(IFERROR(AF3/AG3,FALSE),AF3/AG3," ") -> 0.01 | AI3: 1 | AJ3: 100 | AK3: =IF(IFERROR(AJ3/AI3,FALSE),AJ3/AI3," ") -> 100 | AL3: 1 | AM3: 0.4502797 | AN3: =IF(IFERROR(AL3/AM3,FALSE),AL3/AM3," ") -> 2.220841846 | AO3: 1 | AP3: 0.1095192 | AQ3: =IF(IFERROR(AP3/AO3,FALSE),AP3/AO3," ") -> 0.1095192 | AR3: 10 | AS3: 2.2 | AT3: =IF(IFERROR(AS3/AR3,FALSE),AS3/AR3," ") -> 0.22 | AU3: 1 | AV3: 309.5 | AW3: =IF(IFERROR(AU3/AV3,FALSE),AU3/AV3," ") -> 0.003231017771 | AX3: 1 | AY3: 1.1 | AZ3: =IF(AX3<>"",IF(IFERROR(AY3/AX3,FALSE),AY3/AX3,1),"") -> 1.1 | BA3: 1 | BB3: 2789 | BC3: =IF(IFERROR(BA3/BB3,FALSE),BA3/BB3," ") -> 0.0003585257421 | BD3: 1 | BE3: 1 | BF3: =IFERROR(BE3-0.25*BD3,"") -> 0.75 | BG3: =SUM(D3,G3,J3,M3,P3,S3,V3,Y3,AB3,AE3,AH3,AK3,AN3,AQ3,AT3,AW3,AZ3,BC3,BF3)/COUNT(D3,G3,J3,M3,P3,S3,V3,Y3,AB3,AE3,AH3,AK3,AN3,AQ3,AT3,AW3,AZ3,BC3,BF3) -> 10.87
A4: г. Ярославль ГБУЗ ЯО "Областная клиническая туберкулезная больница" | C4: 100 | D4: =IF(IFERROR(B4/C4,FALSE),B4/C4," ") ->  | F4: 100 | G4: =IF(IFERROR(E4/F4,FALSE),E4/F4," ") ->  | I4: 1 | J4: =IF(IFERROR(I4/H4,FALSE),I4/H4," ") ->  | L4: 1 | M4: =IF(IFERROR(L4/K4,FALSE),L4/K4," ") ->  | N4: 63.8 | O4: 53.1 | P4: =IF(IFERROR(N4/O4,FALSE),N4/O4," ") -> 1.202 | Q4: 59.7 | R4: 67.30 | S4: =IF(IFERROR(Q4/R4,FALSE),Q4/R4," ") -> 0.887 | T4: 9166.5 | U4: 20012.2 | V4: =IF(IFERROR(T4/U4,FALSE),T4/U4," ") -> 0.4580455922 | W4: 1626101.2 | X4: 3011855 | Y4: =IF(IFERROR(W4/X4,FALSE),W4/X4," ") -> 0.5399002276 | Z4: 97.5 | AA4: 100 | AB4: =IF(IFERROR(AA4/Z4,FALSE),AA4/Z4," ") -> 1.025641026 | AC4: 108.7 | AD4: 100 | AE4: =IF(IFERROR(AC4/AD4,FALSE),AC4/AD4," ") -> 1.087 | AF4: 104.5 | AG4: 100 | AH4: =IF(IFERROR(AF4/AG4,FALSE),AF4/AG4," ") -> 1.045 | AJ4: 100 | AK4: =IF(IFERROR(AJ4/AI4,FALSE),AJ4/AI4," ") ->  | AM4: 0.4502797 | AN4: =IF(IFERROR(AL4/AM4,FALSE),AL4/AM4," ") ->  | AP4: 0.1095192 | AQ4: =IF(IFERROR(AP4/AO4,FALSE),AP4/AO4," ") ->  | AR4: 6.3 | AS4: 2.2 | AT4: =IF(IFERROR(AS4/AR4,FALSE),AS4/AR4," ") -> 0.349 | AU4: 301.8 | AV4: 309.5 | AW4: =IF(IFERROR(AU4/AV4,FALSE),AU4/AV4," ") -> 0.9751211632 | AX4: 6.7 | AY4: 1.1 | AZ4: =IF(AX4<>"",IF(IFERROR(AY4/AX4,FALSE),AY4/AX4,1),"") -> 0.164 | BA4: 2854.8 | BB4: 2789 | BC4: =IF(IFERROR(BA4/BB4,FALSE),BA4/BB4," ") -> 1.024 | BE4: 1 | BF4: =IFERROR(BE4-0.25*BD4,"") -> 1 | BG4: =SUM(D4,G4,J4,M4,P4,S4,V4,Y4,AB4,AE4,AH4,AK4,AN4,AQ4,AT4,AW4,AZ4,BC4,BF4)/COUNT(D4,G4,J4,M4,P4,S4,V4,Y4,AB4,AE4,AH4,AK4,AN4,AQ4,AT4,AW4,AZ4,BC4,BF4) -> 0.81 | BH4: =IF(INDEX('Рейтинг 4 гр'!A6:C19,MATCH(A4,'Рейтинг 4 гр'!$B$3:$B$16,0),3)>=0,INDEX('Рейтинг 4 гр'!$A$3:$C$16,MATCH(A4,'Рейтинг 4 гр'!$B$3:$B$16,0),1),"Дискв.") -> 12
A5: г. Ярославль ГБУЗ ЯО "Областной врачебно-физкультурный диспансер" | C5: 100 | F5: 100 | I5: 1 | L5: 1 | N5: 63 | O5: 53.1 | P5: 1.186 | Q5: 21.4 | R5: 67.30 | S5: 0.318 | T5: 1321.9 | U5: 20012.2 | V5: 0.06605470663 | W5: 63322.2 | X5: 3011855 | Y5: 0.0210243189 | AA5: 100 | AD5: 100 | AF5: 104 | AG5: 100 | AH5: 1.04 | AJ5: 100 | AM5: 0.4502797 | AP5: 0.1095192 | AR5: 0 | AS5: 2.2 | AV5: 309.5 | AY5: 1.1 | BA5: 2700.1 | BB5: 2789 | BC5: 0.968 | BE5: 1 | BF5: 1 | BG5: 0.66 | BH5: =IF(INDEX('Рейтинг 4 гр'!A7:C20,MATCH(A5,'Рейтинг 4 гр'!$B$3:$B$16,0),3)>=0,INDEX('Рейтинг 4 гр'!$A$3:$C$16,MATCH(A5,'Рейтинг 4 гр'!$B$3:$B$16,0),1),"Дискв.") -> 13
A6: г. Ярославль ГБУЗ ЯО "Областной кожно-венерологический диспансер" | C6: 100 | F6: 100 | I6: 1 | L6: 1 | N6: 81.8 | O6: 53.1 | P6: 1.540 | Q6: 17.8 | R6: 67.30 | S6: 0.264 | T6: 10703.8 | U6: 20012.2 | V6: 0.5348637331 | W6: 1692181.2 | X6: 3011855 | Y6: 0.5618401948 | Z6: 88.8 | AA6: 100 | AB6: 1.126126126 | AC6: 101.2 | AD6: 100 | AE6: 1.012 | AF6: 80.6 | AG6: 100 | AH6: 0.806 | AJ6: 100 | AM6: 0.4502797 | AP6: 0.1095192 | AR6: 0.1 | AS6: 2.2 | AT6: 22.000 | AU6: 279.7 | AV6: 309.5 | AW6: 0.9037156704 | AY6: 1.1 | BA6: 3229.6 | BB6: 2789 | BC6: 1.158 | BE6: 1 | BF6: 1 | BG6: 2.81 | BH6: =IF(INDEX('Рейтинг 4 гр'!A8:C21,MATCH(A6,'Рейтинг 4 гр'!$B$3:$B$16,0),3)>=0,INDEX('Рейтинг 4 гр'!$A$3:$C$16,MATCH(A6,'Рейтинг 4 гр'!$B$3:$B$16,0),1),"Дискв.") -> 6
A7: г. Ярославль ГБУЗ ЯО "Ярославская областная клиническая наркологическая больница" | C7: 100 | F7: 100 | I7: 1 | L7: 1 | N7: 55.6 | O7: 53.1 | P7: 1.047 | Q7: 23.3 | R7: 67.30 | S7: 0.346 | T7: 6476.3 | U7: 20012.2 | V7: 0.3236175933 | W7: 348722.2 | X7: 3011855 | Y7: 0.1157831967 | Z7: 104.6 | AA7: 100 | AB7: 0.9560229446 | AD7: 100 | AF7: 266.2 | AG7: 100 | AH7: 2.662 | AJ7: 100 | AM7: 0.4502797 | AP7: 0.1095192 | AR7: 0.2 | AS7: 2.2 | AT7: 11.000 | AU7: 345.4 | AV7: 309.5 | AW7: 1.115993538 | AY7: 1.1 | BA7: 3427.9 | BB7: 2789 | BC7: 1.229 | BE7: 1 | BF7: 1 | BG7: 1.98 | BH7: =IF(INDEX('Рейтинг 4 гр'!A10:C23,MATCH(A7,'Рейтинг 4 гр'!$B$3:$B$16,0),3)>=0,INDEX('Рейтинг 4 гр'!$A$3:$C$16,MATCH(A7,'Рейтинг 4 гр'!$B$3:$B$16,0),1),"Дискв.") -> 4
A8: г. Ярославль ГБУЗ ЯО "Ярославская областная клиническая психиатрическая больница" | C8: 100 | F8: 100 | I8: 1 | L8: 1 | N8: 61 | O8: 53.1 | P8: 1.149 | Q8: 17.7 | R8: 67.30 | S8: 0.263 | T8: 8959.1 | U8: 20012.2 | V8: 0.447681914 | W8: 1976783.4 | X8: 3011855 | Y8: 0.6563341861 | Z8: 97.7 | AA8: 100 | AB8: 1.023541453 | AC8: 101.7 | AD8: 100 | AE8: 1.017 | AF8: 168.6 | AG8: 100 | AH8: 1.686 | AI8: 83.3 | AJ8: 100 | AK8: 1.200480192 | AM8: 0.4502797 | AP8: 0.1095192 | AR8: 2.3 | AS8: 2.2 | AT8: 0.957 | AU8: 313.6 | AV8: 309.5 | AW8: 1.013247173 | AY8: 1.1 | BA8: 2900.3 | BB8: 2789 | BC8: 1.040 | BE8: 1 | BF8: 1 | BG8: 0.95 | BH8: =IF(INDEX('Рейтинг 4 гр'!A11:C24,MATCH(A8,'Рейтинг 4 гр'!$B$3:$B$16,0),3)>=0,INDEX('Рейтинг 4 гр'!$A$3:$C$16,MATCH(A8,'Рейтинг 4 гр'!$B$3:$B$16,0),1),"Дискв.") -> 9
A9: г. Рыбинск ГКУЗ ЯО "Рыбинский противотуберкулезный диспансер" | C9: 100 | F9: 100 | I9: 1 | L9: 1 | N9: 55.6 | O9: 53.1 | P9: 1.047 | Q9: 17.6 | R9: 67.30 | S9: 0.262 | T9: 8617.3 | U9: 20012.2 | V9: 0.4306023326 | W9: 2692422.2 | X9: 3011855 | Y9: 0.8939415078 | Z9: 47.5 | AA9: 100 | AB9: 2.105263158 | AD9: 100 | AF9: 73 | AG9: 100 | AH9: 0.73 | AJ9: 100 | AM9: 0.4502797 | AP9: 0.1095192 | AR9: 5.5 | AS9: 2.2 | AT9: 0.400 | AU9: 218.7 | AV9: 309.5 | AW9: 0.7066235864 | AY9: 1.1 | BA9: 1688.2 | BB9: 2789 | BC9: 0.605 | BE9: 1 | BF9: 1 | BG9: 0.82 | BH9: =IF(INDEX('Рейтинг 4 гр'!A13:C26,MATCH(A9,'Рейтинг 4 гр'!$B$3:$B$16,0),3)>=0,INDEX('Рейтинг 4 гр'!$A$3:$C$16,MATCH(A9,'Рейтинг 4 гр'!$B$3:$B$16,0),1),"Дискв.") -> 14
A10: г. Рыбинск ГКУЗ ЯО "Рыбинская психиатрическая больница" | C10: 100 | F10: 100 | I10: 1 | L10: 1 | N10: 60.9 | O10: 53.1 | P10: 1.147 | Q10: 0 | R10: 67.30 | T10: 4893.9 | U10: 20012.2 | V10: 0.244545827 | W10: 1200230.3 | X10: 3011855 | Y10: 0.3985020195 | Z10: 89.6 | AA10: 100 | AB10: 1.116071429 | AC10: 107 | AD10: 100 | AE10: 1.07 | AF10: 131.9 | AG10: 100 | AH10: 1.319 | AI10: 100.8 | AJ10: 100 | AK10: 0.9920634921 | AM10: 0.4502797 | AP10: 0.1095192 | AR10: 0.8 | AS10: 2.2 | AT10: 2.750 | AU10: 322.5 | AV10: 309.5 | AW10: 1.042003231 | AY10: 1.1 | BA10: 3881.9 | BB10: 2789 | BC10: 1.392 | BE10: 1 | BF10: 1 | BG10: 1.13 | BH10: =IF(INDEX('Рейтинг 4 гр'!A14:C27,MATCH(A10,'Рейтинг 4 гр'!$B$3:$B$16,0),3)>=0,INDEX('Рейтинг 4 гр'!$A$3:$C$16,MATCH(A10,'Рейтинг 4 гр'!$B$3:$B$16,0),1),"Дискв.") -> 10
A11: г. Ярославль ГУЗ ЯО "Центр СПИД" | C11: 100 | F11: 100 | I11: 1 | L11: 1 | N11: 84.2 | O11: 53.1 | P11: 1.586 | Q11: 40 | R11: 67.30 | S11: 0.594 | T11: 31118.6 | U11: 20012.2 | V11: 1.554981461 | W11: 1072773.7 | X11: 3011855 | Y11: 0.356183714 | AA11: 100 | AD11: 100 | AF11: 127.2 | AG11: 100 | AH11: 1.272 | AJ11: 100 | AM11: 0.4502797 | AP11: 0.1095192 | AQ11: =IF(IFERROR(AP11/AO11,FALSE),AP11/AO11," ") ->  | AR11: 0 | AS11: 2.2 | AV11: 309.5 | AY11: 1.1 | BA11: 1085.1 | BB11: 2789 | BC11: 0.389 | BE11: 1 | BF11: 1 | BG11: 0.96 | BH11: =IF(INDEX('Рейтинг 4 гр'!A16:C29,MATCH(A11,'Рейтинг 4 гр'!$B$3:$B$16,0),3)>=0,INDEX('Рейтинг 4 гр'!$A$3:$C$16,MATCH(A11,'Рейтинг 4 гр'!$B$3:$B$16,0),1),"Дискв.") -> 7

Sheet рейтинг 5 гр (hidden)
